bitfinex/quotes_SOLUSD_20241111
["timestamp","ask_amount","ask_price","bid_price","bid_amount"]
[1731314562394,10.62926939,208.05,207.96,23.776884]
[1731314562395,10.62926939,208.07,208.0,10.62926939]
[1731314562598,10.62926939,208.08,208.01,30.62926939]
[1731314562788,10.62926939,208.08,208.01,20.0]
[1731314563302,10.62926939,208.1,208.03,10.62926939]
[1731314563494,10.62926939,208.1,208.02,10.62926939]
[1731314563684,15.9385,208.13,208.03,23.776884]
[1731314563886,10.62926939,208.1,208.03,23.776884]
[1731314564086,10.62926939,208.09,208.02,23.776884]
[1731314566015,15.9385,208.13,208.02,34.40615339]
[1731314566195,10.62926939,208.1,208.02,34.40615339]
[1731314568811,15.43486939,208.09,208.02,23.776884]
[1731314568989,10.62926939,208.09,208.02,23.776884]
[1731314569190,10.62926939,208.09,208.02,34.40615339]
[1731314569888,10.62926939,208.09,208.02,23.776884]
[1731314570512,4.12497826,208.09,208.02,23.776884]
[1731314573396,10.62926939,208.1,208.02,34.40615339]
[1731314576713,10.62926939,208.09,208.02,34.40615339]
[1731314577092,10.62926939,208.09,208.02,23.776884]
[1731314577295,10.62926939,208.07,208.01,20.0]
[1731314577501,10.62926939,208.06,208.0,20.0]
[1731314577711,10.62926939,208.07,208.0,30.62926939]
[1731314580520,10.62926939,208.08,208.02,20.0]
[1731314581211,10.62926939,208.08,208.01,20.0]
[1731314581404,10.62926939,208.08,208.01,10.62926939]
[1731314581721,4.8058,208.08,208.02,20.0]
[1731314582695,15.9385,208.13,208.02,20.0]
[1731314582921,10.62926939,208.11,208.03,10.62926939]
[1731314583598,10.62926939,208.09,208.02,10.62926939]
[1731314584021,10.62926939,208.08,208.02,20.0]
[1731314586003,10.62926939,208.09,208.02,20.0]
[1731314586736,10.62926939,208.11,208.03,10.62926939]
[1731314587103,10.62926939,208.11,207.96,2.62518531]
[1731314587104,10.62926939,208.09,208.02,23.776884]
[1731314587811,4.8049,208.12,208.02,23.776884]
[1731314588009,10.62926939,208.1,208.02,23.776884]
[1731314589330,10.62926939,208.11,208.03,10.62926939]
[1731314590507,10.62926939,208.09,207.95,22.55336152]
[1731314590722,10.62926939,208.09,208.02,20.0]
[1731314591102,4.8052,208.11,208.02,20.0]
[1731314591421,10.62926939,208.09,208.02,20.0]
[1731314591628,10.62926939,208.09,207.95,2.55336152]
[1731314591629,15.43486939,208.09,207.97,20.0]
[1731314591827,10.62926939,208.05,208.01,20.0]
[1731314592206,10.62926939,208.04,207.91,0.83405915]
[1731314592421,10.62926939,208.03,207.95,10.62926939]
[1731314593130,10.62926939,208.03,207.96,10.62926939]
[1731314593510,10.62926939,208.03,207.97,20.0]
[1731314595133,10.62926939,208.05,207.98,20.0]
[1731314595708,10.62926939,208.04,207.98,20.0]
[1731314596012,10.62926939,208.03,207.95,30.62926939]
[1731314596225,10.62926939,208.03,207.96,34.40615339]
[1731314596418,10.62926939,208.03,207.97,20.0]
[1731314596815,10.62926939,208.04,207.97,30.62926939]
[1731314597513,10.62926939,208.05,207.97,30.62926939]
[1731314599328,71.32707756,208.12,207.97,30.62926939]
[1731314599520,10.62926939,208.05,207.98,34.40615339]
[1731314601125,10.62926939,208.05,207.98,23.776884]
[1731314602133,10.62926939,208.04,207.98,23.776884]
[1731314602622,10.62926939,208.03,207.96,10.62926939]
[1731314602828,10.62926939,208.03,207.98,20.0]
[1731314603922,10.62926939,208.02,207.98,20.0]
[1731314604132,10.62926939,208.02,207.96,20.0]
[1731314605729,10.62926939,208.04,207.98,20.0]
[1731314606131,10.62926939,208.03,207.98,20.0]
[1731314606518,10.62926939,208.03,207.97,20.0]
[1731314608828,10.62926939,208.01,207.95,20.0]
[1731314609023,10.62926939,208.02,207.95,30.62926939]
[1731314609436,10.62926939,208.03,207.97,20.0]
[1731314609741,4.8053,208.11,208.0,23.776884]
[1731314609923,10.62926939,208.08,208.01,10.62926939]
[1731314610540,10.62926939,208.07,208.0,34.40615339]
[1731314610837,10.62926939,208.06,207.99,20.0]
[1731314611021,10.62926939,208.05,207.99,20.0]
[1731314612234,10.62926939,208.06,207.99,20.0]
[1731314612438,10.62926939,208.04,207.99,20.0]
[1731314612626,10.62926939,208.06,207.99,20.0]
[1731314614521,4.8051,208.11,208.01,20.0]
[1731314614738,10.62926939,208.07,208.01,20.0]
[1731314614943,10.62926939,208.06,208.01,20.0]
[1731314615128,10.62926939,208.06,208.0,20.0]
[1731314617019,10.62926939,208.06,207.99,20.0]
[1731314617225,10.62926939,208.03,207.95,20.0]
[1731314617427,10.62926939,208.03,207.97,20.0]
[1731314617844,10.62926939,208.04,207.97,30.62926939]
[1731314618727,10.62926939,208.05,207.97,30.62926939]
[1731314618925,10.62926939,208.05,207.97,20.0]
[1731314619228,16.8179,208.11,207.97,30.62926939]
[1731314619542,10.62926939,208.07,207.99,10.62926939]
[1731314619925,10.62926939,208.06,207.99,10.62926939]
[1731314620125,4.8051,208.11,207.99,10.62926939]
[1731314620126,10.62926939,208.05,207.99,20.0]
[1731314620325,10.62926939,208.04,207.99,20.0]
[1731314620522,10.62926939,208.02,207.95,23.776884]
[1731314620735,10.62926939,208.02,207.95,10.62926939]
[1731314620934,10.62926939,208.01,207.94,22.8718]
[1731314621128,10.62926939,208.0,207.94,22.8718]
[1731314621323,10.62926939,208.01,207.94,33.50106939]
[1731314622038,10.62926939,208.02,207.95,30.62926939]
[1731314622237,4.8069,208.04,207.95,30.62926939]
[1731314622431,15.0963,208.06,207.99,20.0]
[1731314622733,10.62926939,208.06,207.99,20.0]
[1731314622941,10.62926939,208.05,207.99,20.0]
[1731314623125,4.806,208.08,207.97,10.62926939]
[1731314623126,10.62926939,208.04,207.98,20.0]
[1731314624549,10.62926939,208.04,207.97,20.0]
[1731314624750,10.62926939,208.04,207.97,30.62926939]
[1731314624947,10.62926939,208.04,207.97,20.0]
[1731314625132,10.62926939,208.04,207.97,30.62926939]
[1731314625750,10.62926939,208.05,207.99,20.0]
[1731314626850,10.62926939,208.07,208.0,10.62926939]
[1731314627149,10.62926939,208.08,208.0,10.62926939]
[1731314627345,10.62926939,208.08,208.01,20.0]
[1731314629052,4.8056,208.09,208.01,20.0]
[1731314629254,10.62926939,208.07,208.01,20.0]
[1731314632049,16.5098,208.11,208.02,34.40615339]
[1731314632253,40.9188,208.18,208.02,34.40615339]
[1731314632254,10.62926939,208.12,208.05,30.62926939]
[1731314632554,10.62926939,208.12,208.05,10.62926939]
[1731314633435,10.62926939,208.12,208.05,20.0]
[1731314634259,10.62926939,208.1,208.05,20.0]
[1731314634455,10.62926939,208.12,208.05,20.0]
[1731314634846,4.8045,208.14,208.05,20.0]
[1731314635153,10.62926939,208.12,208.05,30.62926939]
[1731314635344,10.62926939,208.12,208.05,20.0]
[1731314635545,10.62926939,208.13,208.06,34.40615339]
[1731314636229,10.62926939,208.14,208.06,34.40615339]
[1731314636449,10.62926939,208.13,208.06,34.40615339]
[1731314637460,10.62926939,208.13,208.06,23.776884]
[1731314637957,10.62926939,208.13,208.06,34.40615339]
[1731314639254,10.62926939,208.13,208.06,23.776884]
[1731314639755,10.62926939,208.13,208.06,34.40615339]
[1731314640257,4.8042,208.15,208.06,34.40615339]
[1731314640441,10.62926939,208.13,208.06,34.40615339]
[1731314641159,4.8042,208.15,208.06,34.40615339]
[1731314641368,10.62926939,208.14,208.06,34.40615339]
[1731314641934,10.62926939,208.13,208.06,34.40615339]
[1731314642135,10.62926939,208.12,208.03,43.776884]
[1731314642338,10.62926939,208.12,208.05,43.776884]
[1731314642935,10.62926939,208.13,208.05,54.40615339]
[1731314643135,10.62926939,208.14,208.07,10.62926939]
[1731314643959,10.62926939,208.15,208.08,10.62926939]
[1731314644843,10.62926939,208.15,208.07,10.62926939]
[1731314645249,4.8037,208.18,208.1,10.62926939]
[1731314645448,10.62926939,208.19,208.12,10.62926939]
[1731314646042,15.43226939,208.2,208.12,10.62926939]
[1731314646359,10.62926939,208.2,208.12,10.62926939]
[1731314646671,10.62926939,208.2,208.13,10.62926939]
[1731314647762,10.62926939,208.2,208.1,20.0]
[1731314648060,16.1688,208.22,208.09,28.18104448]
[1731314648061,10.62926939,208.14,208.09,21.7433]
[1731314648250,4.8029,208.21,208.09,21.7433]
[1731314648251,10.62926939,208.16,208.09,32.37256939]
[1731314648461,10.62926939,208.17,208.09,32.37256939]
[1731314648641,10.62926939,208.16,208.09,32.37256939]
[1731314648841,10.62926939,208.14,208.09,21.7433]
[1731314649064,10.62926939,208.13,208.04,22.7428]
[1731314649267,10.62926939,208.13,208.06,10.62926939]
[1731314649445,10.62926939,208.1,208.04,22.7428]
[1731314651245,10.62926939,208.11,208.04,33.37206939]
[1731314651570,10.62926939,208.1,208.05,20.0]
[1731314652564,0.1,208.2,208.05,20.0]
[1731314652565,10.62926939,208.11,208.05,20.0]
[1731314654053,10.62926939,208.12,208.05,30.62926939]
[1731314654461,4.8033,208.19,208.09,10.62926939]
[1731314654775,10.62926939,208.16,208.09,10.62926939]
[1731314655070,28.1756,208.22,208.06,23.776884]
[1731314655071,10.62926939,208.15,208.08,10.62926939]
[1731314657965,10.62926939,208.14,208.07,30.62926939]
[1731314659157,10.56575414,208.14,208.07,30.62926939]
[1731314659469,10.62926939,208.13,208.07,20.0]
[1731314660469,10.62926939,208.14,208.07,20.0]
[1731314660653,28.1756,208.22,208.06,34.40615339]
[1731314660654,10.62926939,208.13,208.06,34.40615339]
[1731314660973,10.62926939,208.14,208.07,10.62926939]
[1731314662056,10.62926939,208.15,208.08,10.62926939]
[1731314662458,10.62926939,208.14,208.07,10.62926939]
[1731314662659,10.62926939,208.14,208.08,20.0]
[1731314663466,10.62926939,208.15,208.08,30.62926939]
[1731314663859,10.62926939,208.16,208.08,30.62926939]
[1731314666083,10.62926939,208.14,208.06,20.0]
[1731314666268,10.62926939,208.14,208.04,22.7428]
[1731314666269,10.62926939,208.14,208.08,20.0]
[1731314666957,10.62926939,208.15,208.08,20.0]
[1731314667360,10.62926939,208.14,208.08,20.0]
[1731314667563,10.62926939,208.14,208.07,20.0]
[1731314669057,10.62926939,208.15,208.09,20.0]
[1731314669457,10.62926939,208.14,208.07,30.62926939]
[1731314669972,10.62926939,208.11,208.05,20.0]
[1731314670182,10.62926939,208.12,208.05,20.0]
[1731314670353,10.62926939,208.12,208.05,30.62926939]
[1731314671055,10.62926939,208.11,208.05,20.0]
[1731314671260,10.62926939,208.13,208.06,10.62926939]
[1731314671468,10.62926939,208.13,208.07,20.0]
[1731314672786,10.62926939,208.13,208.05,30.62926939]
[1731314674279,10.62926939,208.15,208.07,10.62926939]
[1731314674483,10.62926939,208.15,208.08,20.0]
[1731314675365,10.62926939,208.13,208.05,30.62926939]
[1731314676584,10.62926939,208.15,208.08,20.0]
[1731314678377,10.62926939,208.17,208.1,20.0]
[1731314679874,4.8033,208.19,208.1,20.0]
[1731314680175,10.62926939,208.16,208.1,20.0]
[1731314681865,10.62926939,208.14,208.04,22.7428]
[1731314682068,10.62926939,208.07,208.04,22.7428]
[1731314682477,10.62926939,208.08,208.04,22.7428]
[1731314683386,10.62926939,208.08,208.05,20.0]
[1731314684382,10.62926939,208.08,207.95,0.83447383]
[1731314684383,10.62926939,208.08,208.0,23.776884]
[1731314684569,10.62926939,208.08,208.0,34.40615339]
[1731314685588,10.62926939,208.08,208.02,23.776884]
[1731314685769,10.62926939,208.08,208.03,20.0]
[1731314686183,4.8047,208.13,208.04,23.776884]
[1731314686378,15.5434,208.14,208.06,23.776884]
[1731314686671,15.5434,208.14,208.07,20.0]
[1731314686870,6.1745,208.2,208.07,20.0]
[1731314686871,4.8039,208.17,208.08,23.776884]
[1731314687096,10.62926939,208.12,208.08,23.776884]
[1731314687767,21.1817,208.2,208.08,23.776884]
[1731314687966,10.62926939,208.13,208.08,23.776884]
[1731314688291,10.62926939,208.12,208.08,23.776884]
[1731314689694,21.1817,208.2,208.08,23.776884]
[1731314689695,15.0072,208.2,208.11,10.62926939]
[1731314689993,6.2213,208.26,208.14,10.62926939]
[1731314689994,10.62926939,208.22,208.14,10.62926939]
[1731314690400,15.4538,208.26,208.18,34.40615339]
[1731314690574,4.801,208.29,208.19,10.62926939]
[1731314690891,10.62926939,208.26,208.19,10.62926939]
[1731314691078,26.4758,208.31,208.21,23.776884]
[1731314691273,10.62926939,208.28,208.21,23.776884]
[1731314691478,10.62926939,208.27,208.21,23.776884]
[1731314691675,4.8009,208.3,208.17,22.382]
[1731314691676,10.62926939,208.26,208.17,22.382]
[1731314691880,10.62926939,208.26,208.18,54.40615339]
[1731314692090,10.62926939,208.25,208.18,54.40615339]
[1731314693293,10.62926939,208.27,208.2,10.62926939]
[1731314693897,10.62926939,208.27,208.2,23.776884]
[1731314694096,4.8011,208.29,208.2,23.776884]
[1731314694295,10.62926939,208.27,208.2,34.40615339]
[1731314694598,10.62926939,208.27,208.21,23.776884]
[1731314696092,10.62926939,208.26,208.19,20.0]
[1731314696299,10.62926939,208.26,208.2,23.776884]
[1731314696798,10.62926939,208.27,208.2,34.40615339]
[1731314698399,26.4757,208.31,208.2,34.40615339]
[1731314698603,10.62926939,208.28,208.2,34.40615339]
[1731314698982,10.62926939,208.27,208.2,23.776884]
[1731314699182,10.62926939,208.27,208.2,34.40615339]
[1731314699904,21.6751,208.31,208.17,22.382]
[1731314699905,26.4758,208.31,208.18,20.0]
[1731314700103,10.62926939,208.26,208.19,23.776884]
[1731314700285,10.62926939,208.26,208.19,34.40615339]
[1731314700484,10.62926939,208.27,208.21,23.776884]
[1731314700755,10.62926939,208.26,208.21,23.776884]
[1731314702901,10.62926939,208.22,208.18,20.0]
[1731314703104,10.62926939,208.23,208.18,20.0]
[1731314703296,4.8007,208.3,208.18,10.62926939]
[1731314703297,10.62926939,208.25,208.18,10.62926939]
[1731314703907,4.8007,208.3,208.2,30.62926939]
[1731314703908,10.62926939,208.27,208.2,30.62926939]
[1731314704083,10.62926939,208.27,208.21,23.776884]
[1731314704421,10.62926939,208.28,208.21,34.40615339]
[1731314705110,10.62926939,208.27,208.21,23.776884]
[1731314705686,15.4538,208.31,208.21,34.40615339]
[1731314705886,10.62926939,208.29,208.23,23.776884]
[1731314706305,10.62926939,208.29,208.22,23.776884]
[1731314707394,10.62926939,208.28,208.22,23.776884]
[1731314708205,22.6368,208.36,208.22,34.40615339]
[1731314708404,10.62926939,208.3,208.22,10.62926939]
[1731314708905,4.7996,208.35,208.23,34.40615339]
[1731314709121,4.7996,208.35,208.25,34.40615339]
[1731314709401,10.62926939,208.3,208.25,23.776884]
[1731314710503,10.62926939,208.26,208.15,22.0471]
[1731314710713,10.62926939,208.21,208.15,22.0471]
[1731314711090,10.62926939,208.2,208.15,22.0471]
[1731314711406,10.62926939,208.22,208.15,32.67636939]
[1731314711595,15.7785,208.28,208.15,32.67636939]
[1731314711912,10.62926939,208.22,208.16,20.0]
[1731314712601,10.62926939,208.19,208.1,6.0511]
[1731314712791,4.802,208.25,208.1,6.0511]
[1731314712792,10.62926939,208.16,208.1,6.0511]
[1731314713111,10.62926939,208.17,208.1,16.68036939]
[1731314713895,10.62926939,208.15,208.1,6.0511]
[1731314714093,10.62926939,208.16,208.1,6.0511]
[1731314714801,10.62926939,208.15,208.1,6.0511]
[1731314715096,10.62926939,208.14,208.05,8.60671465]
[1731314715298,10.62926939,208.14,208.06,10.62926939]
[1731314715484,10.62926939,208.11,208.05,6.0511]
[1731314716109,10.62926939,208.14,208.06,10.62926939]
[1731314716809,10.62926939,208.13,208.07,20.0]
[1731314717190,10.62926939,208.12,208.08,23.776884]
[1731314719012,10.62926939,208.11,208.08,23.776884]
[1731314719714,10.62926939,208.12,208.08,23.776884]
[1731314719914,16.6356,208.19,208.08,23.776884]
[1731314719915,10.62926939,208.13,208.08,23.776884]
[1731314720993,10.62926939,208.14,208.08,23.776884]
[1731314721413,10.62926939,208.09,207.98,11.63563397]
[1731314721713,6.2524,208.15,207.98,11.63563397]
[1731314721714,10.62926939,208.02,207.98,6.6275]
[1731314722011,10.62926939,208.01,207.97,15.4539]
[1731314722405,10.62926939,208.02,207.97,15.4539]
[1731314723316,10.62926939,208.02,207.98,23.776884]
[1731314723607,10.62926939,208.04,208.0,23.776884]
[1731314724610,10.62926939,208.05,208.0,23.776884]
[1731314724806,10.62926939,208.05,208.02,23.776884]
[1731314725120,16.62657505,208.05,208.01,20.0]
[1731314725416,16.62657505,208.02,207.99,23.776884]
[1731314725622,16.62657505,208.01,207.99,23.776884]
[1731314726210,16.62657505,208.01,207.98,20.0]
[1731314727404,16.62657505,208.01,207.99,23.776884]
[1731314727605,16.62657505,208.0,207.94,20.0]
[1731314728300,16.62657505,208.01,207.94,16.62657505]
[1731314729199,16.62657505,208.0,207.94,23.776884]
[1731314729392,4.8065,208.05,207.93,6.2937]
[1731314729393,16.62657505,207.98,207.93,23.776884]
[1731314729715,16.62657505,207.98,207.91,23.776884]
[1731314730032,16.62657505,207.98,207.91,16.62657505]
[1731314730319,16.62657505,207.98,207.9,21.6311211]
[1731314730695,16.62657505,207.98,207.91,20.0]
[1731314730899,16.62657505,207.97,207.91,20.0]
[1731314731316,16.62657505,207.97,207.93,20.0]
[1731314731497,21.4435,208.02,207.93,20.0]
[1731314731498,16.62657505,207.98,207.93,20.0]
[1731314731908,16.62657505,207.99,207.93,20.0]
[1731314734401,16.62657505,207.99,207.94,23.776884]
[1731314734715,16.62657505,207.98,207.93,20.0]
[1731314735610,16.62657505,207.97,207.93,20.0]
[1731314736202,16.62657505,207.97,207.91,23.776884]
[1731314736407,16.62657505,207.96,207.91,20.0]
[1731314736708,16.62657505,207.93,207.87,20.0]
[1731314736916,16.62657505,207.91,207.83,19.17804955]
[1731314737098,16.62657505,207.91,207.81,22.0254]
[1731314737099,16.62657505,207.91,207.84,16.62657505]
[1731314737307,16.62657505,207.92,207.85,16.62657505]
[1731314738216,16.62657505,207.92,207.86,20.0]
[1731314738508,16.62657505,207.93,207.86,20.0]
[1731314738904,16.62657505,207.91,207.86,20.0]
[1731314739105,16.62657505,207.91,207.85,20.0]
[1731314739505,16.62657505,207.92,207.86,23.776884]
[1731314739998,16.62657505,207.93,207.86,23.776884]
[1731314740419,16.62657505,207.91,207.85,23.776884]
[1731314741114,16.62657505,207.97,207.9,23.776884]
[1731314741702,16.62657505,207.96,207.9,23.776884]
[1731314742612,16.62657505,207.95,207.89,23.776884]
[1731314742815,16.62657505,207.96,207.89,23.776884]
[1731314744113,16.62657505,207.96,207.89,40.40345905]
[1731314749134,10.64983409,207.96,207.89,34.42671809]
[1731314749632,8.76424833,208.02,207.89,34.42671809]
[1731314749934,10.64983409,207.96,207.89,34.42671809]
[1731314750743,10.64983409,207.97,207.89,34.42671809]
[1731314750931,10.64983409,207.99,207.92,23.776884]
[1731314751122,10.64983409,208.02,207.94,34.42671809]
[1731314751322,11.4439,208.04,207.94,34.42671809]
[1731314751629,10.64983409,208.05,207.98,10.64983409]
[1731314751811,9.87593296,208.08,207.99,23.776884]
[1731314752008,10.64983409,208.06,207.99,23.776884]
[1731314752538,10.64983409,208.06,207.98,10.64983409]
[1731314752539,10.64983409,208.04,207.98,23.776884]
[1731314752743,10.64983409,208.04,207.99,20.0]
[1731314753038,10.64983409,208.03,207.97,23.776884]
[1731314753261,10.64983409,208.02,207.96,43.776884]
[1731314753540,4.8058,208.08,207.96,54.42671809]
[1731314753541,10.64983409,208.03,207.96,54.42671809]
[1731314753911,10.64983409,208.01,207.95,23.776884]
[1731314754213,10.64983409,208.02,207.95,23.776884]
[1731314754412,10.64983409,208.01,207.95,23.776884]
[1731314754824,10.64983409,208.02,207.95,10.64983409]
[1731314756230,4.8068,208.04,207.89,25.24812229]
[1731314756231,10.64983409,208.04,207.98,23.776884]
[1731314756408,10.64983409,208.05,207.98,34.42671809]
[1731314757521,10.64983409,208.05,207.98,23.776884]
[1731314758450,4.8058,208.08,208.0,23.776884]
[1731314758733,10.64983409,208.06,208.0,23.776884]
[1731314759333,4.8048,208.13,208.03,23.776884]
[1731314759520,10.64983409,208.08,208.03,23.776884]
[1731314759717,10.64983409,208.08,208.02,23.776884]
[1731314760822,16.62073088,208.08,208.02,23.776884]
[1731314761236,16.62073088,208.07,208.02,23.776884]
[1731314761921,16.62073088,208.08,208.02,23.776884]
[1731314763143,16.62073088,208.09,208.02,40.39761488]
[1731314763325,16.62073088,208.1,208.04,16.62073088]
[1731314763525,16.62073088,208.1,208.03,36.62073088]
[1731314763728,16.62073088,208.09,208.04,23.776884]
[1731314764142,16.62073088,208.08,208.04,23.776884]
[1731314764327,16.62073088,208.09,208.04,23.776884]
[1731314767156,16.62073088,208.1,208.04,23.776884]
[1731314767443,16.62073088,208.09,208.04,23.776884]
[1731314767622,16.62073088,208.2,208.09,43.776884]
[1731314767823,21.42323088,208.23,208.11,43.776884]
[1731314768034,16.62073088,208.24,208.17,16.62073088]
[1731314768260,21.42273088,208.25,208.18,16.62073088]
[1731314768441,16.62073088,208.25,208.18,16.62073088]
[1731314768839,16.62073088,208.24,208.16,16.62073088]
[1731314769042,16.62073088,208.23,208.15,60.39761488]
[1731314769345,16.62073088,208.21,208.13,16.62073088]
[1731314769532,16.62073088,208.2,208.13,16.62073088]
[1731314769734,16.62073088,208.2,208.12,16.62073088]
[1731314769927,16.62073088,208.21,208.13,60.39761488]
[1731314770341,16.62073088,208.17,208.1,20.0]
[1731314770527,16.62073088,208.13,208.06,16.62073088]
[1731314771426,16.62073088,208.14,208.06,16.62073088]
[1731314771926,16.62073088,208.16,208.08,16.62073088]
[1731314772241,16.62073088,208.15,208.08,16.62073088]
[1731314772844,16.62073088,208.16,208.08,16.62073088]
[1731314773336,4.8039,208.17,208.09,40.39761488]
[1731314773337,16.62073088,208.17,208.09,40.39761488]
[1731314773842,16.62073088,208.16,208.09,40.39761488]
[1731314775533,16.62073088,208.17,208.09,40.39761488]
[1731314777124,16.62073088,208.16,208.09,23.776884]
[1731314778248,16.62073088,208.16,208.09,40.39761488]
[1731314778631,16.62073088,208.17,208.1,16.62073088]
[1731314778827,16.62073088,208.17,208.09,40.39761488]
[1731314779028,16.62073088,208.16,208.09,40.39761488]
[1731314779233,16.62073088,208.16,208.09,23.776884]
[1731314779935,16.62073088,208.17,208.09,40.39761488]
[1731314781031,16.62073088,208.2,208.12,36.62073088]
[1731314781239,16.62073088,208.21,208.13,40.39761488]
[1731314781659,16.62073088,208.23,208.16,16.62073088]
[1731314782341,16.62073088,208.23,208.15,16.62073088]
[1731314782535,16.62073088,208.19,208.13,23.776884]
[1731314782749,16.62073088,208.2,208.14,20.0]
[1731314782953,16.62073088,208.21,208.14,36.62073088]
[1731314783456,16.62073088,208.2,208.13,40.39761488]
[1731314785039,15.1017,208.32,208.19,16.62073088]
[1731314785348,16.62073088,208.27,208.19,16.62073088]
[1731314785733,16.62073088,208.27,208.2,23.776884]
[1731314786053,16.62073088,208.29,208.22,23.776884]
[1731314786951,16.62073088,208.27,208.2,43.776884]
[1731314789254,15.0017,208.32,208.2,43.776884]
[1731314789255,16.62073088,208.28,208.2,60.39761488]
[1731314789647,16.62073088,208.28,208.21,16.62073088]
[1731314790143,16.62073088,208.28,208.2,60.39761488]
[1731314790456,4.8005,208.31,208.22,16.62073088]
[1731314790654,19.802,208.32,208.23,16.62073088]
[1731314790854,16.62073088,208.3,208.23,16.62073088]
[1731314791234,16.62073088,208.3,208.22,60.39761488]
[1731314792947,21.42143088,208.3,208.22,36.62073088]
[1731314793251,16.62073088,208.28,208.22,20.0]
[1731314794147,16.62073088,208.3,208.22,36.62073088]
[1731314794459,16.62073088,208.3,208.23,23.776884]
[1731314794840,19.802,208.32,208.23,23.776884]
[1731314794841,16.62073088,208.28,208.23,23.776884]
[1731314797059,15.0017,208.32,208.19,22.82683088]
[1731314797257,16.62073088,208.26,208.19,22.82683088]
[1731314798447,16.62073088,208.27,208.19,22.82683088]
[1731314798859,16.62073088,208.27,208.2,23.776884]
[1731314799565,16.62073088,208.26,208.2,23.776884]
[1731314799765,16.62073088,208.27,208.2,23.776884]
[1731314800344,16.62073088,208.26,208.2,23.776884]
[1731314800546,16.62073088,208.24,208.19,6.2061]
[1731314800847,16.62073088,208.24,208.18,43.776884]
[1731314801149,16.62073088,208.24,208.17,32.53673088]
[1731314801562,16.62073088,208.22,208.14,22.86313088]
[1731314801755,6.2489,208.3,208.14,22.86313088]
[1731314801756,16.62073088,208.21,208.14,6.2424]
[1731314802362,16.62073088,208.21,208.14,22.86313088]
[1731314802854,16.62073088,208.2,208.15,20.0]
[1731314803044,16.62073088,208.21,208.15,20.0]
[1731314805566,16.62073088,208.22,208.16,23.776884]
[1731314807267,12.1024,208.29,208.16,23.776884]
[1731314807268,16.62073088,208.23,208.16,40.39761488]
[1731314808965,16.62073088,208.22,208.16,23.776884]
[1731314809359,16.62073088,208.21,208.16,23.776884]
[1731314809564,4.8012,208.28,208.16,23.776884]
[1731314809565,16.62073088,208.19,208.16,23.776884]
[1731314809868,16.62073088,208.19,208.15,23.776884]
[1731314810167,16.62073088,208.16,208.12,16.603]
[1731314810349,16.62073088,208.23,208.09,6.2424]
[1731314810350,16.62073088,208.14,208.09,6.2424]
[1731314810546,16.62073088,208.15,208.09,6.2424]
[1731314810857,16.62073088,208.16,208.09,22.86313088]
[1731314811267,4.8035,208.18,208.09,8.81867443]
[1731314811470,16.62073088,208.12,208.09,2.57627443]
[1731314811654,16.62073088,208.12,208.07,16.603]
[1731314812660,16.62073088,208.15,208.08,36.62073088]
[1731314812966,16.62073088,208.15,208.09,16.62073088]
[1731314813363,16.62073088,208.16,208.09,16.62073088]
[1731314813876,16.62073088,208.15,208.09,23.776884]
[1731314815677,16.62073088,208.18,208.11,40.39761488]
[1731314816178,16.62073088,208.18,208.13,23.776884]
[1731314816388,16.62073088,208.2,208.13,40.39761488]
[1731314816681,16.62073088,208.19,208.13,40.39761488]
[1731314817373,16.62073088,208.2,208.14,16.62073088]
[1731314817759,16.62073088,208.2,208.13,16.62073088]
[1731314818176,16.62073088,208.2,208.14,23.776884]
[1731314818673,16.62073088,208.19,208.13,23.776884]
[1731314820477,16.62073088,208.21,208.14,16.62073088]
[1731314820662,16.62073088,208.21,208.13,23.776884]
[1731314820663,16.62073088,208.24,208.17,40.39761488]
[1731314820863,16.62073088,208.24,208.17,23.776884]
[1731314821171,16.62073088,208.23,208.17,23.776884]
[1731314821371,16.62073088,208.24,208.17,40.39761488]
[1731314821678,16.62073088,208.28,208.21,40.39761488]
[1731314821860,16.62073088,208.3,208.23,16.62073088]
[1731314822065,16.62073088,208.29,208.24,23.776884]
[1731314822572,16.62073088,208.28,208.22,23.776884]
[1731314822771,16.62073088,208.28,208.21,23.776884]
[1731314823887,4.8,208.33,208.21,23.776884]
[1731314824184,16.62073088,208.33,208.26,16.62073088]
[1731314824481,6.5191,208.37,208.27,40.39761488]
[1731314824482,16.62073088,208.34,208.27,40.39761488]
[1731314825065,16.62073088,208.35,208.27,40.39761488]